Cogmind - Beta 17 @@@ ROGUE MODE // 2026.08.12 @ 19:10:48 Player: Marc Result: Destroyed by I0-UKL(R) with Subdweller Beam Cannon Performance ------------- Evolutions (0) 0 Regions Visited (2) 400 Robots Destroyed (3) 15 Value Destroyed (97) 97 Prototype IDs (0) 0 Alien Tech Used (0) 0 Bonus (-24) -24 TOTAL SCORE: 488 Bonus ------- Friendly Fire -24 Cogmind --------- Core Integrity 0/250 Matter 149/300 Energy 99/100 System Corruption 0% Temperature Cool (9) Movement Core (50) Location -10/Subcaves Parts ------- > --- POWER (1) -------- (None) > --- PROPULSION (2) --- (None) > --- UTILITY (2) ------ (None) > --- WEAPON (2) ------- (None) > --- INVENTORY (5) ---- Light Ion Engine Small Storage Unit Medium Laser Peak State ------------ > --- POWER ------------ Light Ion Engine > --- PROPULSION ------- Aluminum Leg Aluminum Leg > --- UTILITY ---------- Small Storage Unit Visual Processing Unit > --- WEAPON ----------- Medium Laser Assault Rifle > --- INVENTORY -------- Ion Engine Grenade Launcher [Rating: 8] Favorites ----------- Power Light Ion Engine Engine Light Ion Engine Propulsion Aluminum Leg Leg Aluminum Leg Utility Visual Processing Unit Device Sensor Array Storage Small Storage Unit Processor Visual Processing Unit Weapon Assault Rifle Energy Gun Medium Laser Ballistic Gun Assault Rifle Launcher Grenade Launcher Special Melee Weapon Datajack Build | -11 -10 -10 ------- Run | Yrd Mat Sub Slots Evolved . | . . . Power . | . . . Propulsion . | . . . Utility . | . . . Weapon . | . . . Parts Attached 6 | . 6 . Power . | . . . Engine . | . . . Core . | . . . Reactor . | . . . Propulsion . | . . . Treads . | . . . Leg . | . . . Wheel . | . . . Hover . | . . . Flight . | . . . Utility 2 | . 2 . Device 1 | . 1 . Storage . | . . . Processor 1 | . 1 . Hackware . | . . . Protection . | . . . Artifact . | . . . Weapon 4 | . 4 . Energy Gun 1 | . 1 . Energy Cannon . | . . . Ballistic Gun 1 | . 1 . Ballistic Cannon . | . . . Launcher 1 | . 1 . Special Weapon . | . . . Impact Weapon . | . . . Slashing Weapon . | . . . Piercing Weapon . | . . . Special Melee Weapon 1 | . 1 . Unidentified Prototypes . | . . . Parts Lost 2 | . . 2 Power 1 | . . 1 Propulsion . | . . . Utility . | . . . Weapon 1 | . . 1 Highest Loss Streak 2 | . . 2 To Critical Strikes . | . . . Average Backups 3 | 6 2 3 Power 1 | 1 1 1 Propulsion . | 4 . . Utility . | . . 1 Weapon . | 1 . 1 Tool/Special . | . . . Unused Backups 4 | . 2 2 Power 1 | . . 1 Propulsion . | . . . Utility 1 | . . 1 Weapon 2 | . 2 . Tool/Special . | . . . Average Slot Usage (%) 90 | . 95 68 Engine 13 | . 14 8 Leg 26 | . 28 19 Device 9 | . 9 9 Storage 4 | . 4 . Processor 10 | . 10 9 Energy Gun 7 | . 9 . Ballistic Gun 7 | . 9 . Launcher 5 | . 4 9 Special Melee Weapon 5 | . 4 9 Peak Build Rating 8 | 6 8 8 Average Rating 7 | 6 7 5 On Entrance 6 | 6 6 8 Avg Prop Armor Cover (%) . | . . . Naked Turns 34 | . . 34 Heaviest Build 12 | 12 12 8 Greatest Support 20 | 20 20 20 Greatest Overweight (x) . | . . . Average Overweight (x) . | . . . Largest Inventory Capacity 8 | 8 8 5 Average Capacity 5 | 8 6 5 Most Carried 8 | 6 8 3 Average Carried 2 | 6 2 3 Final Capacity 8 | 8 5 5 Final Carried 6 | 6 3 3 Class Distribution -------------------- 100% | Mutant Dominant Class ---------------- Mutant | -10/Materials Mutant | -10/Subcaves Resources | -11 -10 -10 ----------- Run | Yrd Mat Sub Matter Collected 223 | 200 23 . Remotely . | . . . Salvage Created 60 | . 60 . Parts 5 | . 5 . Haulers Intercepted . | . . . Recyclers Shooed 1 | . 1 . Parts Field Recycled . | . . . Retrieved Matter . | . . . Parts Self-Destructed . | . . . Prevented . | . . . Parts Restored . | . . . Kills | -11 -10 -10 ------- Run | Yrd Mat Sub Combat Hostiles Destroyed 2 | . 2 . AOE 2 | . 2 . Classes Destroyed 2 | . 2 . Watcher 1 | . 1 . Grunt 2 | . 2 . Best Kill Streak 2 | . 2 . Combat Bots Only 2 | . 2 . Max Kills in Single Turn 1 | . 1 . Gunslinging . | . . . Exploded 1 | . 1 . Melee . | . . . Uniques/NPCs Destroyed . | . . . Combat | -11 -10 -10 -------- Run | Yrd Mat Sub Hostile Shots Fired 29 | . 10 19 Missed 14 | . 4 10 Hits 15 | . 6 9 Projectile 15 | . 6 9 AOE 3 | . . 3 Damage Taken 451 | . 99 352 Core 262 | . 32 230 Absorbed by Shields . | . . . Core Remaining (%) 100 | 100 . . Volleys Fired 15 | . 13 2 Largest 2 | . 2 1 Hottest 70 | . 70 30 Shots Fired 18 | . 16 2 Gun 6 | . 6 . Cannon . | . . . Launcher 12 | . 10 2 Special . | . . . Kinetic 3 | . 3 . Thermal 3 | . 3 . Explosive 12 | . 10 2 Electromagnetic . | . . . Robot Hit Streak 7 | . 7 . Robot Miss Streak 1 | . 1 . Penetration Max . | . . . Secondary Targets . | . . . Shots Hit Robots 11 | . 11 . Core Hits 6 | . 5 1 Critical Kills . | . . . Critical Parts Destroyed . | . . . Critical Strikes 1 | . 1 . Burn 1 | . 1 . Melee Attacks 1 | . 1 . Impact . | . . . Slashing . | . . . Piercing . | . . . Sneak Attacks 1 | . 1 . Combat Hostiles . | . . . Follow-up Attacks . | . . . Damage Inflicted 535 | . 427 108 Guns 50 | . 50 . Cannons . | . . . Explosions 477 | . 369 108 Melee . | . . . Ramming 8 | . 8 . Kinetic 11 | . 11 . Thermal 39 | . 39 . Explosive 477 | . 369 108 Electromagnetic . | . . . Impact . | . . . Slashing . | . . . Piercing . | . . . Highest Corruption . | . . . Average Corruption . | . . . Corruption Purged . | . . . Corruption Blocked . | . . . Overload Shots . | . . . Overflow Damage 8 | . 8 . Projectiles . | . . . Explosions 8 | . 8 . Melee . | . . . Knockbacks . | . . . Impact . | . . . Kinetic . | . . . Secondary . | . . . Self-Inflicted Damage 7 | . 7 . Shots 1 | . 1 . Rammed . | . . . Targets Rammed 1 | . 1 . Kicked 1 | . 1 . Crushed . | . . . Highest Temperature 9 | . 9 . Average Temperature 5 | . 5 . Received Heat Transfer 117 | . 54 63 Siege Activations . | . . . Martial Activations . | . . . Shielding Activations . | . . . Robots Disrupted . | . . . Combat Hostiles . | . . . Robots Corrupted . | . . . Combat Hostiles . | . . . Parts Fried . | . . . Impact Corruptions . | . . . Robots Melted . | . . . Combat Hostiles . | . . . Parts Melted . | . . . Heat Transferred 185 | . 185 . Parts Sabotaged . | . . . Parts Stolen . | . . . Parts Stripped . | . . . Power Chain Reactions . | . . . Alert | -11 -10 -10 ------- Run | Yrd Mat Sub Maximum Alert Level . | . . . Low Security (%) 100 | 100 100 . Level 1 . | . . . Level 2 . | . . . Level 3 . | . . . Level 4 . | . . . Level 5 . | . . . High Security . | . . . Max Security . | . . . Peak Influence 77 | . 77 . Initial . | . . . Average 5 | . 5 . Influence Increases 96 | . 96 . Destroy 0b10 Robot/C 40 | . 40 . Destroy 0b10 Robot/NC 5 | . 5 . Destroy Leader 12 | . 12 . Successful Hack 4 | . 4 . Destroy Structure 35 | . 35 . Influence Decreases 96 | . 35 61 Entered New Map 30 | . . 30 Time Decay 55 | . 35 20 Lost Part 11 | . . 11 Squads Dispatched . | . . . Investigation . | . . . Extermination . | . . . Reinforcement . | . . . Assault . | . . . Garrison . | . . . Intercept . | . . . Searches Triggered . | . . . Construction Impeded . | . . . Haulers Reinforced . | . . . Active Scanning Responses . | . . . Cargo Convoy Interrupts . | . . . Stealth | -11 -10 -10 --------- Run | Yrd Mat Sub Distress Signals . | . . . Communications Jammed . | . . . Distress Signals . | . . . Times Spotted 10 | . 5 5 Peak Tracking Total 5 | . 2 5 Tactical Retreats . | . . . Traps | -11 -10 -10 ------- Run | Yrd Mat Sub Traps Triggered . | . . . Indirectly . | . . . Trap Hack Attempts . | . . . Triggered . | . . . Disarmed . | . . . Reprogrammed . | . . . Reused . | . . . Traps Extracted . | . . . Installed . | . . . Triggered . | . . . Machines | -11 -10 -10 ---------- Run | Yrd Mat Sub Machines Disabled . | . . . Max in Single Turn . | . . . Machines Repaired . | . . . Machines Dismantled . | . . . Machines Sabotaged . | . . . Overloaded Fab Kills . | . . . Hacking | -11 -10 -10 --------- Run | Yrd Mat Sub Machines Accessed 2 | . 2 . Terminals 2 | . 2 . Fabricators . | . . . Repair Stations . | . . . Recycling Units . | . . . Scanalyzers . | . . . Garrison Access . | . . . Total Hacks 6 | . 6 . Successful 2 | . 2 . Failed 4 | . 4 . Catastrophic . | . . . Database Lockouts . | . . . Manual 2 | . 2 . Terminals 6 | . 6 . Fabricators . | . . . Repair Stations . | . . . Recycling Units . | . . . Scanalyzers . | . . . Garrison Access . | . . . Terminal Hacks 2 | . 2 . Locate Traps 1 | . 1 . Registered Components 1 | . 1 . Fabricator Hacks . | . . . Repair Station Hacks . | . . . Recycling Unit Hacks . | . . . Scanalyzer . | . . . Garrison Access Hacks . | . . . Unauthorized Hacks . | . . . Terminals . | . . . Fabricators . | . . . Repair Stations . | . . . Recycling Units . | . . . Scanalyzers . | . . . Garrison Access . | . . . Data Cores Recovered . | . . . Used . | . . . Hacking Detections 2 | . 2 . Full Trace Events . | . . . Feedback Events . | . . . Feedback Blocked . | . . . Robot Schematics Acquired . | . . . Robots Built . | . . . Authchips . | . . . Time . | . . . Total Robot Build Rating . | . . . Part Schematics Acquired . | . . . Parts Built . | . . . Authchips . | . . . Time . | . . . Total Part Build Rating . | . . . Part Studies Acquired . | . . . Parts Repaired . | . . . Time . | . . . Parts Recycled . | . . . Recycled Matter . | . . . Retrieved Matter . | . . . Retrieved Components . | . . . Parts Scanalyzed . | . . . Part Schematics Acquired . | . . . Parts Damaged . | . . . Bothacking | -11 -10 -10 ------------ Run | Yrd Mat Sub Used RIF Installer . | . . . Robots Hacked 1 | . 1 . Non-combat 1 | . 1 . Combat . | . . . Robot Hacks Applied 1 | . 1 . no_distress 1 | . 1 . Relay Couplers Released . | . . . Fabnet Peak Effective % . | . . . Robots Rewired . | . . . Allies Hacked . | . . . Hacks Repelled . | . . . Allies | -11 -10 -10 -------- Run | Yrd Mat Sub Total Allies . | . . . Largest Group . | . . . Highest-Rated Group . | . . . Highest-Rated Ally . | . . . Total Orders . | . . . Ally Attacks . | . . . Total Damage . | . . . Kills . | . . . Allies Corrupted . | . . . Allies Melted . | . . . Intel | -11 -10 -10 ------- Run | Yrd Mat Sub Active Infowar (turns) 421 | . 359 62 Optics 421 | . 359 62 Sensors 376 | . 314 62 Robot Analysis Total . | . . . Derelict Logs Recovered 1 | . . 1 Drone Launches . | . . . Drone Recoveries . | . . . Exploration | -11 -10 -10 ------------- Run | Yrd Mat Sub Turns Passed 578 | 2 480 96 Spaces Moved 434 | 2 325 107 Core 68 | . . 68 Treads . | . . . Legs 366 | 2 325 39 Wheels . | . . . Hover . | . . . Flight . | . . . Fastest Speed 50 | 120 120 50 Average Speed 109 | 120 120 75 Slowest Speed 120 | 120 120 120 Overloaded Moves . | . . . Propulsion Burnouts . | . . . Robots Hopped . | . . . Potential Cave-ins . | . . . Cave-ins Triggered . | . . . Exploration Rate (%) 11 | 2 22 10 Regions Visited 2 Branch Regions 1 Pre-discovered Areas . | . . . Known Exits Taken . | . . . Unknown Exits Taken 2 | 1 1 . Scrap Searched . | . . . Spaces Dug . | . . . Terrain Destroyed 62 | . 52 10 Melee . | . . . Projectile . | . . . AOE 62 | . 52 10 Terrain Rammed . | . . . Walls Destroyed . | . . . Machines Disabled . | . . . Actions | -11 -10 -10 --------- Run | Yrd Mat Sub Total 525 | 1 404 120 Wait 54 | . 43 11 Move 432 | 1 324 107 Hop . | . . . Pick Up 5 | . 5 . Fast Attach . | . . . Attach 6 | . 6 . Detach 4 | . 4 . Swap . | . . . Drop 7 | . 7 . Fire 15 | . 13 2 Melee 1 | . 1 . Ram . | . . . Kick 1 | . 1 . Crush . | . . . Escape Stasis . | . . . Rewire . | . . . Trap . | . . . Miscellaneous . | . . . Route ------- -11/Scrapyard -10/Materials -10/Subcaves History --------- Turn | Location | Event 1 | -11/Scrapyard | Discovered new exit (range 1) 3 | -11/Scrapyard | Entered Materials 304 | -10/Materials | Build established: Mutant 374 | -10/Materials | Discovered new exit (range 6) 483 | -10/Materials | Entered Subcaves 484 | -10/Subcaves | Approached by a straggling Scientist 541 | -10/Subcaves | Ambushed by Subdweller buried in earth 545 | -10/Subcaves | Released all parts (5) 548 | -10/Subcaves | Core integrity fell below 50% 558 | -10/Subcaves | Core integrity fell below 20% 562 | -10/Subcaves | Learned 4 Materials zone layouts 579 | -10/Subcaves | Destroyed by I0-UKL(R) with Subdweller Beam Cannon Last Messages --------------- GOAL=ESCAPE 00484_ YJ-PAF(c): "Thank the algorithms! I was beginning to lose hope I'd never make it past all the Subs lurking out here." 00487_ YJ-PAF(c): "Hey, let me tag along and I can get us both out of this nasty situation. At least I think I can... The group I got separated from was talking about a shortcut back to the UFD." YJ-PAF(c): "I think it's somewhere northwest of here" 00539_ Lgt. Ion Engine destroyed. 00539_ YJ-PAF(c) destroyed. [Achievement: Do Not Disturb] 00541_ Grenade Launcher destroyed. 00542_ I0-UKL(R): "NOSTUCKSUB!" 00545_ Released Visual Processing Unit. 00545_ Released Aluminum Leg. 00545_ Released Sensor Array. 00545_ Released Datajack. [Achievement: Live, Flee, And Rebuild] 00560_ The unstable cave ceiling collapses. 00562_ Acquired derelict log, extracted data. Data stored: Materials zone layouts (x4). Map ----- +----------------------------------------------------+ | ????????????????? """ ""??# ### | | ????????????????? ## ## | | ???????????????? #?## ! | | ???????????????? ### =%= | | ???????????????? """ " #" "##"" | | ???????????????? "" ""## ### " " | | ?????????????????? ##?????####?## = | | ???????????????????????????????## !=/ | | ???????????????????????????????# # " | | ???????????????????????????????## # "" | | ????????????????????????????????## ## "" # | | ?????????????????????????????????## ## | | ??????????????????????????????????## ### | | ??????????????????????????????????####?## | | ????????????????????????????????? #??## " | | ?????????????????????????? ??? ?### #### | | ?????????????????????????? ?? #?# ####??# | | ????????????????????????? ??# #?# ##???? # | | ?????????????????????????? ### ### ##??? | | ?????????????????????????? ## ##R ##?# | | ??????????????????????????# R ## | | ??????????????????????????# | | ?????????????????????????## ### | | ??????????????????????#### #??## # | | ???????????????????#### ## #?### ## | | ??????????????????## ## @ ### #?# ##? | | ?????????????????## ## ## #?# ##?? | | ????????????????## ## ### #??? | | ????????????????# ## #??? | | ????????????????# #??? | | ????????????????##### ### ##??? | | ????????????????????#### #### ## ####??###???? | | ???????????????????????####??#########???????????? | | ?????????????????????????????????????????????????? | | ?????????????????????????????????????????????????? | | ?????????????????????????????????????????????????? | | ?????????????????????????????????????????????????? | | ?????????????????????????????????????????????????? | | ?????????????????????????????????????????????????? | | ?????????????????????????????????????????????????? | | ?????????????????????????????????????????????????? | | ?????????????????????????????????????????????????? | | ?????????????????????????????????????????????????? | | ?????????????????????????????????????????????????? | | ?????????????????????????????????????????????????? | | ?????????????????????????????????????????????????? | | ?????????????????????????????????????????????????? | | | | | | | +----------------------------------------------------+ Best States ------------- Heat Dissipation 25 Energy Generation 10 Energy Capacity 125 Matter Stores 300 Matter Capacity 300 Sight Range 18 Robot Scan Range 14 Terrain Scan Density 10 Evasion (%) 55 Item Schematics ----------------- None Robot Schematics ------------------ None Fabricated ------------ Nothing Repaired ---------- Nothing Studied --------- None Alien Tech Used ----------------- None Achievements -------------- Do Not Disturb Live, Flee, And Rebuild Challenges ------------ None Game ------ Seed ImpulsePhasePick Manual? 0 Play Time 00:06:16 Cumulative 16.3 hours Start 2026.08.12 @ 19:05:29 End 2026.08.12 @ 19:10:48 Sessions 1 Manual Loads 0 Difficulty Rogue Special Mode None Game No. 48 Rogue 41 Adventurer 7 Explorer 0 Win Type - Total 0 Types 0/0/0/0/0/0/0/0/0/0 Lore% 10 Gallery% 21 Achievement% 15 Wizard Run 0 Options --------- Layout 0 ASCII 0 Keyboard 0 Movement Mouse Keybinds 0 Fullscreen 1 Font 18/SmallcapsGlow Map View 38x25 Zoom Use 100% Tactical HUD 1 Map Filters NONE Filters NONE Steam 1 RUN: 4cd14546-3fca-4f78-a73f-66b3466a8862